[Event "Kupreichik Memorial Open 2018"]
[Site "Minsk"]
[Date "2018.06.22"]
[Round "7"]
[White "Terletsky, Oleg"]
[Black "Kaliadzich, Maryia"]
[Result "1-0"]
[ECO "B33"]
[WhiteElo "2268"]
[BlackElo "2058"]
[Annotator "NA"]
[PlyCount "55"]
[EventDate "2018.06.21"]
[EventCountry "BLR"]
[SourceTitle "playchess.com"]
[Source "ChessBase"]
[SourceQuality "1"]
[TimeControl "900+10"]

1. e4 {[%emt 0:00:00]} c5 {[%emt 0:00:01]} 2. Nf3 {[%emt 0:00:00]} Nc6 {[%emt 0:00:01]} 3. d4 {[%emt 0:00:00]} cxd4 {[%emt 0:00:01]} 4. Nxd4 {[%emt 0:00:00]} e5 {[%emt 0:00:01]} 5. Nb5 {[%emt 0:00:00]} d6 {[%emt 0:00:06]} 6. N1c3 {[%emt 0:00:05]} Nf6 {[%emt 0:00:19]} 7. Bg5 {[%emt 0:00:10]} a6 {[%emt 0:00:03]} 8. Na3 {[%emt 0:00:02]} b5 {[%emt 0:00:01]} 9. Nd5 {[%emt 0:00:01]} Be7 {[%emt 0:00:01]} 10. Bxf6 {[%emt 0:00:02]} Bxf6 {[%emt 0:00:02]} 11. c3 {[%emt 0:00:01]} O-O {[%emt 0:00:03]} 12. Nc2 {[%emt 0:00:02]} Bg5 {[%emt 0:00:03]} 13. a4 {[%emt 0:00:13]} bxa4 {[%emt 0:00:01]} 14. Rxa4 {[%emt 0:00:02]} a5 {[%emt 0:00:01]} 15. Bc4 {[%emt 0:00:13]} Rb8 {[%emt 0:00:02]} 16. b3 {[%emt 0:00:03]} Kh8 {[%emt 0:00:01]} 17. Nce3 {[%emt 0:00:02]} f5 {[%emt 0:00:49]} 18. exf5 {[%emt 0:00:14]} Bxf5 {[%emt 0:00:11]} 19. Nxf5 {[%emt 0:00:12]} Rxf5 {[%emt 0:00:02]} 20. h4 {[%emt 0:00:37]} Bxh4 {[%emt 0:05:21]} 21. g3 {[%emt 0:00:11]} Bxg3 {[%emt 0:00:24]} 22. fxg3 {[%emt 0:00:31]} Qg5 {[%emt 0:00:31]} 23. g4 {[%emt 0:01:25]} Rff8 {[%emt 0:04:00]} 24. Rh5 {[%emt 0:00:04]} Qd8 {[%emt 0:01:14]} 25. Qd3 {[%emt 0:00:45]} h6 {[%emt 0:01:24]} 26. Qg6 {[%emt 0:00:20]} Rb7 {[%emt 0:00:37]} 27. Bd3 {[%emt 0:00:22]} e4 {[%emt 0:00:41]} 28. Bxe4 {[%emt 0:00:13]} 1-0

[Event "Kupreichik Memorial Open 2018"]
[Site "Minsk"]
[Date "2018.06.22"]
[Round "7"]
[White "Rakhmangulova, Anastasiya"]
[Black "Masjuk, Vladimir"]
[Result "1-0"]
[ECO "C50"]
[WhiteElo "2244"]
[BlackElo "1829"]
[Annotator "NA"]
[PlyCount "77"]
[EventDate "2018.06.21"]
[EventCountry "BLR"]
[SourceTitle "playchess.com"]
[Source "ChessBase"]
[SourceQuality "1"]
[TimeControl "900+10"]

1. e4 {[%emt 0:00:00]} e5 {[%emt 0:00:06]} 2. Nf3 {[%emt 0:00:00]} Nc6 {[%emt 0:00:02]} 3. Bc4 {[%emt 0:00:00]} Bc5 {[%emt 0:00:03]} 4. d3 {[%emt 0:00:00]} d6 {[%emt 0:00:01]} 5. c3 {[%emt 0:00:00]} Nf6 {[%emt 0:00:05]} 6. Bb3 {[%emt 0:00:01]} h6 {[%emt 0:00:08]} 7. O-O {[%emt 0:00:02]} O-O {[%emt 0:00:20]} 8. Nbd2 {[%emt 0:00:02]} Bg4 {[%emt 0:00:05]} 9. Re1 {[%emt 0:00:01]} b5 {[%emt 0:00:19]} 10. h3 {[%emt 0:00:12]} Bd7 {[%emt 0:00:11]} 11. Nf1 {[%emt 0:00:22]} Bb6 {[%emt 0:00:06]} 12. Ng3 {[%emt 0:00:05]} a5 {[%emt 0:00:12]} 13. a4 {[%emt 0:00:07]} b4 {[%emt 0:00:07]} 14. Rf1 {[%emt 0:01:28]} Rb8 {[%emt 0:00:06]} 15. Be3 {[%emt 0:00:48]} bxc3 {[%emt 0:00:57]} 16. bxc3 {[%emt 0:00:01]} Ne7 {[%emt 0:00:05]} 17. Nh4 {[%emt 0:00:16]} c6 {[%emt 0:00:42]} 18. Rb1 {[%emt 0:00:09]} d5 {[%emt 0:00:15]} 19. Nh5 {[%emt 0:01:16]} Ng6 {[%emt 0:00:35]} 20. Nxg6 {[%emt 0:00:10]} fxg6 {[%emt 0:00:07]} 21. Nxf6+ {[%emt 0:00:03]} Qxf6 {[%emt 0:00:10]} 22. Bxb6 {[%emt 0:00:10]} Rxb6 {[%emt 0:00:03]} 23. exd5 {[%emt 0:00:02]} Kh8 {[%emt 0:00:16]} 24. Bc4 {[%emt 0:05:38]} Rxb1 {[%emt 0:00:20]} 25. Qxb1 {[%emt 0:00:01]} Qg5 {[%emt 0:00:42]} 26. Qc1 {[%emt 0:00:17]} Rf4 {[%emt 0:01:26]} 27. dxc6 {[%emt 0:02:45]} Bxc6 {[%emt 0:00:06]} 28. f3 {[%emt 0:01:00]} Bxa4 {[%emt 0:04:46]} 29. Qa3 {[%emt 0:00:32]} Bd7 {[%emt 0:00:05]} 30. Qxa5 {[%emt 0:01:34]} Rf8 {[%emt 0:00:43]} 31. Qc5 {[%emt 0:02:25]} Rc8 {[%emt 0:01:00]} 32. f4 {[%emt 0:00:02]} Qd8 {[%emt 0:04:33]} 33. Qxe5 {[%emt 0:00:05]} Bf5 {[%emt 0:00:17]} 34. Rb1 {[%emt 0:00:23]} Bxd3 {[%emt 0:00:25]} 35. Rb7 {[%emt 0:00:09]} Qf8 {[%emt 0:00:43]} 36. Bxd3 {[%emt 0:00:03]} Re8 {[%emt 0:00:17]} 37. Qd4 {[%emt 0:00:28]} Rd8 {[%emt 0:00:19]} 38. Rd7 {[%emt 0:00:17]} Re8 {[%emt 0:00:31]} 39. Bxg6 {[%emt 0:00:05]} 1-0

[Event "Kupreichik Memorial Open 2018"]
[Site "Minsk"]
[Date "2018.06.22"]
[Round "7"]
[White "Cherepov, Alexej"]
[Black "Papunidi, Matvey"]
[Result "1/2-1/2"]
[ECO "D10"]
[WhiteElo "2234"]
[BlackElo "1751"]
[Annotator "NA"]
[PlyCount "114"]
[EventDate "2018.06.21"]
[EventCountry "BLR"]
[SourceTitle "playchess.com"]
[Source "ChessBase"]
[SourceQuality "1"]
[TimeControl "900+10"]

1. d4 {[%emt 0:00:00]} d5 {[%emt 0:00:01]} 2. c4 {[%emt 0:00:00]} c6 {[%emt 0:00:02]} 3. Nc3 {[%emt 0:00:00]} dxc4 {[%emt 0:00:17]} 4. e3 {[%emt 0:00:00]} b5 {[%emt 0:00:02]} 5. a4 {[%emt 0:00:00]} b4 {[%emt 0:00:06]} 6. Ne4 {[%emt 0:00:02]} Qd5 {[%emt 0:00:36]} 7. Ng3 {[%emt 0:00:04]} Nf6 {[%emt 0:00:26]} 8. Be2 {[%emt 0:00:43]} e6 {[%emt 0:02:45]} 9. e4 {[%emt 0:00:03]} Nxe4 {[%emt 0:00:08]} 10. Bf3 {[%emt 0:00:01]} f5 {[%emt 0:00:01]} 11. N1e2 {[%emt 0:02:47]} Bd6 {[%emt 0:02:27]} 12. O-O {[%emt 0:00:17]} Nd7 {[%emt 0:00:38]} 13. Nf4 {[%emt 0:00:36]} Bxf4 14. Bxf4 {[%emt 0:00:01]} O-O {[%emt 0:00:39]} 15. Re1 {[%emt 0:00:04]} Ndf6 {[%emt 0:00:18]} 16. Be5 {[%emt 0:00:16]} Bb7 {[%emt 0:03:49]} 17. Bxf6 {[%emt 0:01:21]} Rxf6 {[%emt 0:00:01]} 18. Nxe4 {[%emt 0:00:01]} fxe4 {[%emt 0:00:03]} 19. Bxe4 {[%emt 0:00:02]} Qd6 {[%emt 0:00:22]} 20. Rc1 {[%emt 0:01:27]} Raf8 {[%emt 0:00:58]} 21. f3 {[%emt 0:02:28]} Ba6 {[%emt 0:00:04]} 22. Kh1 {[%emt 0:02:18]} Rd8 {[%emt 0:00:20]} 23. Qe2 {[%emt 0:00:31]} Qxd4 {[%emt 0:02:12]} 24. Bxc6 {[%emt 0:00:12]} Qb6 {[%emt 0:01:16]} 25. Bb5 {[%emt 0:02:42]} Bxb5 {[%emt 0:00:03]} 26. axb5 {[%emt 0:00:01]} Qxb5 {[%emt 0:00:01]} 27. Qxc4 {[%emt 0:00:10]} Qxc4 {[%emt 0:00:03]} 28. Rxc4 {[%emt 0:00:01]} a5 {[%emt 0:00:42]} 29. Rc2 {[%emt 0:01:02]} Kf7 {[%emt 0:00:26]} 30. h3 {[%emt 0:00:10]} Rf5 {[%emt 0:00:03]} 31. Rc7+ {[%emt 0:00:26]} Kf6 {[%emt 0:00:01]} 32. Re2 {[%emt 0:00:31]} Rfd5 {[%emt 0:00:12]} 33. Kg1 {[%emt 0:00:36]} Rd2 {[%emt 0:00:38]} 34. Kf2 {[%emt 0:00:03]} Rxe2+ {[%emt 0:00:07]} 35. Kxe2 {[%emt 0:00:01]} Rd5 {[%emt 0:00:13]} 36. Rb7 {[%emt 0:00:06]} h5 {[%emt 0:00:25]} 37. h4 {[%emt 0:00:57]} g6 {[%emt 0:00:15]} 38. g3 {[%emt 0:00:20]} g5 {[%emt 0:00:22]} 39. hxg5+ {[%emt 0:00:45]} Rxg5 {[%emt 0:00:01]} 40. Kf2 {[%emt 0:00:06]} Rc5 {[%emt 0:00:01]} 41. Ra7 {[%emt 0:00:05]} Rc2+ {[%emt 0:00:23]} 42. Ke3 {[%emt 0:00:01]} Rxb2 {[%emt 0:00:08]} 43. Rxa5 {[%emt 0:00:01]} e5 {[%emt 0:00:23]} 44. Ke4 {[%emt 0:00:11]} Re2+ {[%emt 0:00:11]} 45. Kd3 {[%emt 0:00:01]} Rg2 {[%emt 0:00:12]} 46. Rb5 {[%emt 0:00:09]} Rxg3 {[%emt 0:00:03]} 47. Ke4 {[%emt 0:00:12]} h4 {[%emt 0:00:22]} 48. Rxb4 {[%emt 0:00:06]} h3 {[%emt 0:00:02]} 49. Rb8 {[%emt 0:00:21]} h2 {[%emt 0:00:14]} 50. Rh8 {[%emt 0:00:04]} Rg2 {[%emt 0:00:01]} 51. Rh6+ {[%emt 0:00:14]} Kg5 {[%emt 0:00:18]} 52. Rh8 {[%emt 0:00:02]} Re2+ {[%emt 0:00:04]} 53. Kd3 {[%emt 0:00:01]} Ra2 {[%emt 0:00:03]} 54. Ke4 {[%emt 0:00:08]} Ra4+ {[%emt 0:00:07]} 55. Kxe5 {[%emt 0:00:11]} Rh4 {[%emt 0:00:06]} 56. Rg8+ {[%emt 0:00:16]} Kh5 {[%emt 0:00:16]} 57. Rh8+ {[%emt 0:00:05]} Kg5 {[%emt 0:00:01] Ke4} 1/2-1/2

[Event "Kupreichik Memorial Open 2018"]
[Site "Minsk"]
[Date "2018.06.22"]
[Round "7"]
[White "Katashuk, Uladzislau"]
[Black "Zagorskii, Artem"]
[Result "0-1"]
[ECO "A00"]
[WhiteElo "2149"]
[BlackElo "1705"]
[Annotator "NA"]
[PlyCount "84"]
[EventDate "2018.06.21"]
[EventCountry "BLR"]
[SourceTitle "playchess.com"]
[Source "ChessBase"]
[SourceQuality "1"]
[TimeControl "900+10"]

1. g4 {[%emt 0:00:00]} d5 {[%emt 0:00:19]} 2. Bg2 {[%emt 0:00:00]} c6 {[%emt 0:00:02]} 3. h3 {[%emt 0:00:00]} e5 {[%emt 0:00:02]} 4. d4 {[%emt 0:00:00]} e4 {[%emt 0:01:06]} 5. c4 {[%emt 0:00:00]} Be7 {[%emt 0:00:11]} 6. Nc3 {[%emt 0:00:01]} Nf6 {[%emt 0:00:07]} 7. Bg5 {[%emt 0:00:19]} h6 {[%emt 0:00:05]} 8. Bxf6 Bxf6 {[%emt 0:00:02]} 9. e3 {[%emt 0:00:02]} a5 {[%emt 0:00:22]} 10. cxd5 {[%emt 0:00:14]} cxd5 {[%emt 0:00:04]} 11. Qb3 {[%emt 0:00:02]} Be6 {[%emt 0:01:10]} 12. Qxb7 {[%emt 0:00:10]} Na6 {[%emt 0:00:06]} 13. Qb5+ {[%emt 0:00:14]} Kf8 {[%emt 0:01:08]} 14. Nge2 {[%emt 0:00:24]} Nb4 {[%emt 0:00:15]} 15. O-O {[%emt 0:00:17]} Bd7 {[%emt 0:00:35]} 16. Qb7 {[%emt 0:11:13]} Bc6 {[%emt 0:00:02]} 17. Qxa8 {[%emt 0:00:01]} Bxa8 {[%emt 0:00:13]} 18. a3 {[%emt 0:00:01]} Nd3 {[%emt 0:00:01]} 19. Rab1 {[%emt 0:00:01]} Kg8 {[%emt 0:00:26]} 20. Rfd1 {[%emt 0:00:17]} Kh7 {[%emt 0:00:06]} 21. f3 {[%emt 0:00:01]} Bh4 {[%emt 0:01:05]} 22. fxe4 {[%emt 0:00:08]} Nf2 {[%emt 0:00:02]} 23. exd5 {[%emt 0:01:19]} Nxd1 {[%emt 0:00:08]} 24. Rxd1 {[%emt 0:00:02]} Bg5 {[%emt 0:00:31]} 25. e4 {[%emt 0:00:42]} Be3+ {[%emt 0:00:04]} 26. Kh1 {[%emt 0:00:05]} Qb6 {[%emt 0:00:26]} 27. e5 {[%emt 0:00:03]} Bg5 {[%emt 0:01:13]} 28. Rf1 {[%emt 0:00:42]} Kg8 {[%emt 0:04:52]} 29. Be4 {[%emt 0:01:07]} h5 {[%emt 0:00:24]} 30. Kg2 {[%emt 0:00:37]} hxg4 {[%emt 0:00:07]} 31. hxg4 {[%emt 0:00:01]} Be3 {[%emt 0:00:35]} 32. Rf5 {[%emt 0:01:48]} Qxb2 {[%emt 0:00:46]} 33. Rf1 {[%emt 0:00:02]} Qb6 {[%emt 0:00:36]} 34. Rb1 {[%emt 0:00:09]} Qd8 {[%emt 0:00:35]} 35. Kf3 {[%emt 0:00:20]} Rh3+ {[%emt 0:00:16]} 36. Kg2 {[%emt 0:00:01]} Rh8 {[%emt 0:00:32]} 37. Kf3 {[%emt 0:00:00]} Bd2 {[%emt 0:00:39]} 38. g5 {[%emt 0:00:41]} g6 {[%emt 0:00:11]} 39. d6 {[%emt 0:00:04]} Bxc3 {[%emt 0:00:20]} 40. Nxc3 {[%emt 0:00:01]} Rh3+ {[%emt 0:00:05]} 41. Kf4 {[%emt 0:00:22]} Rxc3 {[%emt 0:00:10]} 42. Bb7 {[%emt 0:00:07]} Rh3 {[%emt 0:00:37]} 0-1

[Event "Kupreichik Memorial Open 2018"]
[Site "Minsk"]
[Date "2018.06.22"]
[Round "7"]
[White "Fedotov, Konstantin"]
[Black "Tsvetkova, Vladislava"]
[Result "1-0"]
[ECO "B15"]
[WhiteElo "2090"]
[BlackElo "1697"]
[Annotator "NA"]
[PlyCount "34"]
[EventDate "2018.06.21"]
[EventCountry "BLR"]
[SourceTitle "playchess.com"]
[Source "ChessBase"]
[SourceQuality "1"]
[TimeControl "900+10"]

1. e4 {[%emt 0:00:00]} c6 {[%emt 0:00:01]} 2. d4 {[%emt 0:00:00]} d5 {[%emt 0:00:03]} 3. Nd2 {[%emt 0:00:00]} dxe4 {[%emt 0:00:02]} 4. Nxe4 {[%emt 0:00:00]} Nf6 {[%emt 0:00:02]} 5. Ng3 {[%emt 0:00:04]} Qc7 {[%emt 0:00:11]} 6. c4 {[%emt 0:00:14]} Bg4 {[%emt 0:00:14]} 7. Qb3 {[%emt 0:00:27]} Nbd7 {[%emt 0:00:14]} 8. h3 {[%emt 0:00:06]} Be6 {[%emt 0:00:05]} 9. Bd3 {[%emt 0:00:21]} O-O-O {[%emt 0:00:13]} 10. N1e2 {[%emt 0:00:05]} g6 {[%emt 0:01:45]} 11. a4 {[%emt 0:00:16]} h5 {[%emt 0:00:24]} 12. a5 {[%emt 0:00:02]} h4 {[%emt 0:00:06]} 13. Bf4 {[%emt 0:00:07]} Ne5 {[%emt 0:00:16]} 14. Bxe5 {[%emt 0:00:04]} Qd7 {[%emt 0:00:04]} 15. Nf1 {[%emt 0:00:30]} c5 {[%emt 0:01:19]} 16. d5 {[%emt 0:00:49]} Bf5 {[%emt 0:00:24]} 17. Qa3 {[%emt 0:02:00]} e6 {[%emt 0:00:57]} 1-0

[Event "Kupreichik Memorial Open 2018"]
[Site "Minsk"]
[Date "2018.06.22"]
[Round "7"]
[White "Runets, Ivan"]
[Black "Barskij, Vladimir"]
[Result "1/2-1/2"]
[ECO "D02"]
[WhiteElo "2027"]
[BlackElo "2352"]
[Annotator "NA"]
[PlyCount "88"]
[EventDate "2018.06.21"]
[EventCountry "BLR"]
[SourceTitle "playchess.com"]
[Source "ChessBase"]
[SourceQuality "1"]
[TimeControl "900+10"]

1. d4 {[%emt 0:00:00]} d5 {[%emt 0:00:04]} 2. Nf3 {[%emt 0:00:00]} Nc6 {[%emt 0:00:04]} 3. Bf4 {[%emt 0:00:00]} Bg4 {[%emt 0:00:04]} 4. e3 {[%emt 0:00:02]} e6 {[%emt 0:00:03]} 5. Be2 {[%emt 0:00:05]} Bd6 {[%emt 0:00:10]} 6. Bg3 {[%emt 0:00:04]} Nf6 {[%emt 0:00:29]} 7. Nbd2 {[%emt 0:00:02]} O-O {[%emt 0:00:20]} 8. O-O {[%emt 0:00:04]} Re8 {[%emt 0:06:22]} 9. c4 {[%emt 0:00:21]} dxc4 {[%emt 0:00:41]} 10. Nxc4 {[%emt 0:00:14]} Ne4 {[%emt 0:00:12]} 11. Rc1 {[%emt 0:01:21]} Bxg3 {[%emt 0:02:05]} 12. hxg3 {[%emt 0:00:03]} Qd5 {[%emt 0:00:31]} 13. Nce5 {[%emt 0:01:42]} Nxe5 {[%emt 0:00:10]} 14. Nxe5 {[%emt 0:00:05]} Bxe2 {[%emt 0:00:11]} 15. Qxe2 {[%emt 0:00:03]} c5 {[%emt 0:00:40]} 16. Nf3 {[%emt 0:04:42]} cxd4 {[%emt 0:01:18]} 17. exd4 {[%emt 0:00:02]} Rac8 {[%emt 0:00:16]} 18. Qe3 {[%emt 0:00:29]} Nf6 {[%emt 0:00:07]} 19. a3 {[%emt 0:00:33]} b6 {[%emt 0:01:36]} 20. Rc3 {[%emt 0:00:24]} Qb7 {[%emt 0:00:04]} 21. Rfc1 {[%emt 0:00:30]} Nd5 {[%emt 0:00:02]} 22. Rxc8 {[%emt 0:00:03]} Rxc8 {[%emt 0:00:02]} 23. Qd2 {[%emt 0:00:13]} Rxc1+ {[%emt 0:00:12]} 24. Qxc1 {[%emt 0:00:02]} Qc7 {[%emt 0:00:02]} 25. Qxc7 Nxc7 {[%emt 0:00:01]} 26. Kf1 {[%emt 0:00:07]} f6 {[%emt 0:00:02]} 27. Ke2 {[%emt 0:00:02]} Kf7 {[%emt 0:00:01]} 28. Kd3 {[%emt 0:00:02]} Ke7 {[%emt 0:00:04]} 29. Nd2 {[%emt 0:00:07]} h6 {[%emt 0:00:15]} 30. Ne4 {[%emt 0:00:04]} f5 {[%emt 0:00:18]} 31. Nd2 {[%emt 0:00:08]} g5 {[%emt 0:00:19]} 32. Nc4 {[%emt 0:00:04]} Nd5 {[%emt 0:00:14]} 33. Ne5 {[%emt 0:00:11]} a6 {[%emt 0:00:17]} 34. Nf3 {[%emt 0:00:45]} g4 {[%emt 0:00:23]} 35. Ne5 {[%emt 0:00:14]} h5 {[%emt 0:00:04]} 36. Kc4 {[%emt 0:02:45]} Nf6 {[%emt 0:00:10]} 37. Kd3 {[%emt 0:00:16]} Ne4 {[%emt 0:00:08]} 38. Ke3 {[%emt 0:00:03]} Kd6 {[%emt 0:00:16]} 39. Nd3 {[%emt 0:00:27]} Nf6 {[%emt 0:00:28]} 40. f3 {[%emt 0:00:36]} Nd5+ {[%emt 0:00:33]} 41. Kd2 {[%emt 0:00:13]} a5 {[%emt 0:00:14]} 42. Ne5 {[%emt 0:00:39]} b5 {[%emt 0:00:07]} 43. Nf7+ {[%emt 0:00:02]} Ke7 {[%emt 0:00:20]} 44. Ne5 {[%emt 0:00:02]} Ke8 1/2-1/2

[Event "Kupreichik Memorial Open 2018"]
[Site "Minsk"]
[Date "2018.06.22"]
[Round "7"]
[White "Kalinin, Dmitry"]
[Black "Nigmatov, Ortik"]
[Result "0-1"]
[ECO "E67"]
[WhiteElo "1995"]
[BlackElo "2210"]
[Annotator "NA"]
[PlyCount "68"]
[EventDate "2018.06.21"]
[EventCountry "BLR"]
[SourceTitle "playchess.com"]
[Source "ChessBase"]
[SourceQuality "1"]
[TimeControl "900+10"]

1. d4 {[%emt 0:00:00]} Nf6 {[%emt 0:00:01]} 2. Nf3 {[%emt 0:00:01]} g6 {[%emt 0:00:01]} 3. g3 {[%emt 0:00:14]} Bg7 {[%emt 0:00:01]} 4. Bg2 {[%emt 0:00:06]} O-O {[%emt 0:00:01]} 5. O-O d6 6. c4 {[%emt 0:00:16]} Nbd7 {[%emt 0:00:02]} 7. Nc3 {[%emt 0:00:12]} e5 {[%emt 0:00:02]} 8. dxe5 {[%emt 0:01:15]} dxe5 {[%emt 0:00:03]} 9. h3 {[%emt 0:00:28]} Re8 {[%emt 0:00:13]} 10. Be3 {[%emt 0:00:20]} Qe7 {[%emt 0:02:26]} 11. Qc2 {[%emt 0:01:06]} c6 {[%emt 0:00:55]} 12. Rad1 {[%emt 0:00:47]} a5 {[%emt 0:00:18]} 13. Na4 {[%emt 0:00:47]} b5 {[%emt 0:02:00]} 14. cxb5 cxb5 {[%emt 0:00:01]} 15. Nc5 {[%emt 0:03:26]} Nxc5 {[%emt 0:02:08]} 16. Bxc5 {[%emt 0:00:02]} Qc7 {[%emt 0:00:21]} 17. Rc1 {[%emt 0:01:26]} Bh6 {[%emt 0:05:42]} 18. e3 {[%emt 0:03:29]} Be6 {[%emt 0:00:01]} 19. Nxe5 {[%emt 0:00:58]} Qxe5 {[%emt 0:00:08]} 20. Bd4 {[%emt 0:00:11]} Qg5 {[%emt 0:02:15]} 21. h4 {[%emt 0:00:24]} Qg4 {[%emt 0:00:01]} 22. Bxa8 {[%emt 0:00:18]} Rxa8 {[%emt 0:00:10]} 23. Bxf6 {[%emt 0:00:05]} Qf3 {[%emt 0:00:13]} 24. Qc6 {[%emt 0:00:05]} Bd5 {[%emt 0:00:04]} 25. Qxa8+ Bxa8 {[%emt 0:00:00]} 26. Rc8+ {[%emt 0:00:32]} Bf8 {[%emt 0:00:01]} 27. Rxa8 {[%emt 0:00:01]} Qxa8 {[%emt 0:00:02]} 28. Rc1 {[%emt 0:00:47]} Bg7 {[%emt 0:00:10]} 29. Bxg7 {[%emt 0:02:19]} Kxg7 {[%emt 0:00:02]} 30. Rc5 {[%emt 0:00:02]} Qb7 {[%emt 0:00:07]} 31. Kf1 {[%emt 0:00:06]} Qh1+ {[%emt 0:00:28]} 32. Ke2 {[%emt 0:00:02]} Qb1 {[%emt 0:00:02]} 33. Rxb5 {[%emt 0:00:11]} Qc2+ {[%emt 0:00:01]} 34. Ke1 {[%emt 0:00:08]} Qc1+ 0-1

[Event "Kupreichik Memorial Open 2018"]
[Site "Minsk"]
[Date "2018.06.22"]
[Round "7"]
[White "Romanovskij, Nikita"]
[Black "Girshgorn, Maria"]
[Result "1-0"]
[ECO "A48"]
[WhiteElo "1990"]
[BlackElo "1805"]
[Annotator "NA"]
[PlyCount "123"]
[EventDate "2018.06.21"]
[EventCountry "BLR"]
[SourceTitle "playchess.com"]
[Source "ChessBase"]
[SourceQuality "1"]
[TimeControl "900+10"]

1. d4 {[%emt 0:00:00]} Nf6 {[%emt 0:00:01]} 2. Nf3 {[%emt 0:00:00]} g6 {[%emt 0:00:00]} 3. Bg5 {[%emt 0:00:01]} Bg7 {[%emt 0:00:01]} 4. Nbd2 {[%emt 0:00:01]} d6 {[%emt 0:00:02]} 5. e3 {[%emt 0:00:02]} O-O {[%emt 0:00:02]} 6. Be2 {[%emt 0:00:02]} Nbd7 {[%emt 0:00:08]} 7. O-O {[%emt 0:00:05]} e5 {[%emt 0:00:00]} 8. c3 {[%emt 0:00:13]} c6 {[%emt 0:00:04]} 9. Bh4 {[%emt 0:00:46]} Qc7 {[%emt 0:00:24]} 10. Bg3 {[%emt 0:00:04]} Nh5 {[%emt 0:00:05]} 11. Nc4 {[%emt 0:00:53]} Nxg3 {[%emt 0:00:06]} 12. hxg3 {[%emt 0:00:02]} e4 {[%emt 0:00:11]} 13. Ne1 {[%emt 0:00:06]} d5 {[%emt 0:00:01]} 14. Nd2 {[%emt 0:00:01]} Nf6 {[%emt 0:00:36]} 15. c4 {[%emt 0:00:03]} h5 {[%emt 0:00:31]} 16. Rc1 {[%emt 0:00:26]} Qe7 {[%emt 0:00:27]} 17. cxd5 {[%emt 0:00:13]} cxd5 {[%emt 0:00:04]} 18. Qc2 {[%emt 0:01:10]} Bd7 {[%emt 0:00:49]} 19. Qb3 {[%emt 0:01:09]} Rac8 {[%emt 0:00:19]} 20. Rxc8 {[%emt 0:00:32]} Bxc8 {[%emt 0:00:02]} 21. Nc2 {[%emt 0:00:06]} Rd8 22. Qa3 {[%emt 0:01:07]} Qxa3 {[%emt 0:00:19]} 23. Nxa3 {[%emt 0:00:02]} a6 {[%emt 0:00:32]} 24. Rc1 {[%emt 0:00:07]} Bf8 {[%emt 0:00:28]} 25. Nb3 {[%emt 0:00:46]} Bxa3 {[%emt 0:00:10]} 26. bxa3 {[%emt 0:00:02]} b6 {[%emt 0:00:06]} 27. a4 {[%emt 0:00:15]} Bb7 {[%emt 0:00:46]} 28. a5 {[%emt 0:00:24]} b5 {[%emt 0:00:37]} 29. Nc5 {[%emt 0:00:17]} Rc8 {[%emt 0:00:10]} 30. Rb1 {[%emt 0:00:18]} Rc7 {[%emt 0:00:15]} 31. a4 {[%emt 0:00:14]} Nd7 {[%emt 0:01:50]} 32. Nxb7 {[%emt 0:00:06]} Rxb7 {[%emt 0:00:01]} 33. axb5 {[%emt 0:00:01]} axb5 {[%emt 0:00:33]} 34. Rxb5 {[%emt 0:00:01]} Ra7 {[%emt 0:00:11]} 35. Rxd5 {[%emt 0:00:04]} Kf8 {[%emt 0:01:09]} 36. a6 {[%emt 0:00:11]} Ke7 {[%emt 0:00:13]} 37. Bb5 {[%emt 0:00:49]} Nb8 {[%emt 0:00:16]} 38. Bc4 {[%emt 0:00:35]} f5 {[%emt 0:01:28]} 39. Rb5 {[%emt 0:00:08]} Nd7 {[%emt 0:01:06]} 40. Rb2 {[%emt 0:00:30]} Kd6 {[%emt 0:01:00]} 41. Bb5 {[%emt 0:01:00]} Nb8 {[%emt 0:00:15]} 42. Rc2 {[%emt 0:00:02]} Kd5 {[%emt 0:01:55]} 43. Kh2 {[%emt 0:02:37]} Kd6 {[%emt 0:00:17]} 44. Kh3 {[%emt 0:00:10]} g5 {[%emt 0:00:04]} 45. Rc5 {[%emt 0:00:04]} Ke6 {[%emt 0:00:02]} 46. f3 {[%emt 0:00:14]} g4+ {[%emt 0:00:16]} 47. fxg4 {[%emt 0:00:03]} hxg4+ {[%emt 0:00:04]} 48. Kh2 {[%emt 0:00:16]} Nd7 {[%emt 0:01:07]} 49. Bxd7+ {[%emt 0:00:30]} Rxd7 {[%emt 0:00:04]} 50. Kg1 {[%emt 0:00:10]} Ra7 {[%emt 0:00:06]} 51. Ra5 {[%emt 0:00:01]} Kd7 {[%emt 0:00:44]} 52. Kf2 {[%emt 0:00:07]} Kc7 {[%emt 0:00:06]} 53. Ke2 {[%emt 0:00:19]} Kb6 {[%emt 0:00:08]} 54. Ra2 {[%emt 0:00:02]} Kc7 {[%emt 0:00:25]} 55. Kd2 {[%emt 0:00:02]} Kb8 {[%emt 0:00:01]} 56. Ra5 {[%emt 0:00:23]} Rf7 {[%emt 0:00:04]} 57. a7+ {[%emt 0:00:08]} Ka8 {[%emt 0:00:01]} 58. d5 {[%emt 0:00:12]} Rc7 {[%emt 0:00:20]} 59. d6 {[%emt 0:00:04]} Rd7 {[%emt 0:00:01]} 60. Ra6 {[%emt 0:00:01]} Rd8 {[%emt 0:00:22]} 61. Kc3 {[%emt 0:00:05]} Rc8+ {[%emt 0:00:02]} 62. Kd4 {[%emt 0:00:01]} 1-0

[Event "Kupreichik Memorial Open 2018"]
[Site "Minsk"]
[Date "2018.06.22"]
[Round "7"]
[White "Tsaruk, Maksim"]
[Black "Tkachou, Viktar"]
[Result "1-0"]
[ECO "B41"]
[WhiteElo "1980"]
[BlackElo "1791"]
[Annotator "NA"]
[PlyCount "51"]
[EventDate "2018.06.21"]
[EventCountry "BLR"]
[SourceTitle "playchess.com"]
[Source "ChessBase"]
[SourceQuality "1"]
[TimeControl "900+10"]

1. e4 {[%emt 0:00:00]} c5 {[%emt 0:00:03]} 2. Nf3 {[%emt 0:00:00]} e6 {[%emt 0:00:02]} 3. d4 {[%emt 0:00:00]} cxd4 {[%emt 0:00:01]} 4. Nxd4 {[%emt 0:00:00]} a6 {[%emt 0:00:03]} 5. c4 {[%emt 0:00:00]} d6 {[%emt 0:00:04]} 6. Nc3 {[%emt 0:00:00]} Nf6 {[%emt 0:00:02]} 7. Be3 {[%emt 0:00:01]} Be7 {[%emt 0:00:06]} 8. Be2 {[%emt 0:00:02]} O-O {[%emt 0:00:11]} 9. O-O {[%emt 0:00:04]} Qc7 {[%emt 0:01:24]} 10. Rc1 {[%emt 0:00:02]} b6 {[%emt 0:00:04]} 11. f3 {[%emt 0:00:02]} Bb7 {[%emt 0:00:02]} 12. Qe1 {[%emt 0:00:01]} Nbd7 {[%emt 0:00:14]} 13. Qf2 {[%emt 0:00:08]} Rac8 {[%emt 0:00:50]} 14. Rfd1 {[%emt 0:00:03]} Qb8 {[%emt 0:00:21]} 15. g4 {[%emt 0:02:25]} h6 {[%emt 0:00:56]} 16. Nc2 {[%emt 0:02:51]} Bd8 {[%emt 0:01:05]} 17. Bf4 {[%emt 0:00:02]} Bc7 {[%emt 0:00:11]} 18. Ne3 {[%emt 0:00:06]} Qa8 {[%emt 0:00:45]} 19. Bxd6 {[%emt 0:01:40]} Bxd6 {[%emt 0:00:24]} 20. Rxd6 {[%emt 0:00:01]} Ne5 {[%emt 0:00:34]} 21. Rxb6 {[%emt 0:01:09]} Nfd7 {[%emt 0:01:08]} 22. Rd6 {[%emt 0:00:10]} f5 {[%emt 0:01:49]} 23. gxf5 {[%emt 0:01:03]} exf5 {[%emt 0:00:02]} 24. Nxf5 {[%emt 0:00:14]} Kh8 {[%emt 0:01:24]} 25. Rf1 {[%emt 0:04:12]} Nf6 {[%emt 0:00:21]} 26. Qg3 {[%emt 0:00:25]} 1-0